fUSD/lending_fUSD_20241227
["ID","MTS","AMOUNT","RATE_DAILY","PERIOD"]
[346776499,1735278129795,662.09,0.00012522,2]
[346776500,1735278130466,1317.45,0.00011973,2]
[346776501,1735278130518,2012.09,0.00011974,2]
[346776502,1735278130606,662.09,0.00012796,2]
[346776503,1735278130751,1317.45,0.00012247,2]
[346776504,1735278131050,2012.09,0.00012248,2]
[346776505,1735278131102,1317.45,0.00012521,2]
[346776506,1735278131286,1317.45,0.00012795,2]
[346776507,1735278135046,2012.09,0.00012522,2]
[346776508,1735278136135,2012.09,0.00012796,2]
[346776509,1735278138534,500.0,0.00011973,2]
[346776510,1735278138777,500.0,0.00012247,2]
[346776511,1735278139034,500.0,0.00012521,2]
[346776512,1735278139290,500.0,0.00012795,2]
[346776513,1735278145082,3203.69,0.00011973,2]
[346776514,1735278146267,3203.69,0.00012247,2]
[346776515,1735278146483,3203.69,0.00012521,2]
[346776516,1735278146861,16385.55,0.00011974,2]
[346776517,1735278147131,3203.69,0.00012795,2]
[346776518,1735278147626,16385.55,0.00012248,2]
[346776519,1735278148981,16385.55,0.00012522,2]
[346776520,1735278149563,16385.55,0.00012796,2]
[346776521,1735278152517,682.09,0.00011973,2]
[346776522,1735278152776,682.09,0.00012247,2]
[346776523,1735278153229,682.09,0.00012521,2]
[346776524,1735278153471,682.09,0.00012795,2]
[346776525,1735278153890,480.594,0.0001242,2]
[346776526,1735278160993,1039.68,0.00011973,2]
[346776527,1735278161240,1039.68,0.00012247,2]
[346776528,1735278161494,1039.68,0.00012521,2]
[346776529,1735278161739,1039.68,0.00012795,2]
[346776530,1735278162712,1026.83,0.00011974,2]
[346776531,1735278162840,153.0,0.00012192,2]
[346776532,1735278163443,1026.83,0.00012248,2]
[346776533,1735278163660,153.0,0.00012192,2]
[346776534,1735278163876,153.0,0.00012192,2]
[346776535,1735278164610,1026.83,0.00012522,2]
[346776536,1735278165681,1026.83,0.00012796,2]
[346776537,1735278167583,2197.4,0.00011975,2]
[346776538,1735278167989,2197.4,0.00012249,2]
[346776539,1735278168142,153.0,0.00012192,2]
[346776540,1735278168360,153.0,0.00012192,2]
[346776541,1735278169338,2197.4,0.00012523,2]
[346776542,1735278169877,2197.4,0.00012797,2]
[346776543,1735278173206,697.97,0.00011973,2]
[346776544,1735278173529,697.97,0.00012247,2]
[346776545,1735278173779,697.97,0.00012521,2]
[346776546,1735278174080,697.97,0.00012795,2]
[346776547,1735278183246,1293.54,0.00011974,2]
[346776548,1735278183325,500.0,0.00011973,2]
[346776549,1735278183580,500.0,0.00012247,2]
[346776550,1735278183826,1293.54,0.00012248,2]
[346776551,1735278183887,500.0,0.00012521,2]
[346776552,1735278184114,500.0,0.00012795,2]
[346776553,1735278184431,1293.54,0.00012522,2]
[346776554,1735278185114,1293.54,0.00012796,2]
[346776555,1735278194210,662.32,0.00011973,2]
[346776556,1735278194276,2000.0,0.00012901,2]
[346776557,1735278194457,662.32,0.00012247,2]
[346776558,1735278194712,662.32,0.00012521,2]
[346776559,1735278194948,662.32,0.00012795,2]
[346776560,1735278196704,8745.92,0.00011975,2]
[346776561,1735278197716,8745.92,0.00012249,2]
[346776562,1735278199000,8745.92,0.00012523,2]
[346776563,1735278200144,8745.92,0.00012797,2]
[346776564,1735278204019,1676.74,0.00011974,2]
[346776565,1735278204589,1676.74,0.00012248,2]
[346776566,1735278205095,1676.74,0.00012522,2]
[346776567,1735278206239,1676.74,0.00012796,2]
[346776568,1735278208114,1370.7,0.00011973,2]
[346776569,1735278208572,1370.7,0.00012247,2]
[346776570,1735278209191,1370.7,0.00012521,2]
[346776571,1735278209822,1370.7,0.00012795,2]
[346776572,1735278212102,1423.23,0.00011974,2]
[346776573,1735278212708,1423.23,0.00012248,2]
[346776574,1735278213307,1423.23,0.00012522,2]
[346776575,1735278213743,1423.23,0.00012796,2]
[346776576,1735278217306,500.0,0.00011973,2]
[346776577,1735278217562,500.0,0.00012247,2]
[346776578,1735278217813,500.0,0.00012521,2]
[346776579,1735278218083,500.0,0.00012795,2]
[346776580,1735278219480,1556.22,0.00011973,2]
[346776581,1735278219787,1556.22,0.00012247,2]
[346776582,1735278221203,1556.22,0.00012521,2]
[346776583,1735278221983,1556.22,0.00012795,2]
[346776584,1735278223180,699.05,0.00011974,2]
[346776585,1735278224730,523.38,0.00011975,2]
[346776586,1735278224994,523.38,0.00012249,2]
[346776587,1735278226175,523.38,0.00012523,2]
[346776588,1735278226723,699.05,0.00012248,2]
[346776589,1735278226929,153.0,0.00012186,2]
[346776590,1735278227046,523.38,0.00012797,2]
[346776591,1735278227155,153.0,0.00012186,2]
[346776592,1735278227966,699.05,0.00012522,2]
[346776593,1735278228856,699.05,0.00012796,2]
[346776594,1735278231024,1164.06,0.00011973,2]
[346776595,1735278231281,1164.06,0.00012247,2]
[346776596,1735278231527,1164.06,0.00012521,2]
[346776597,1735278231764,1164.06,0.00012795,2]
[346776598,1735278231955,855.69,0.00011974,2]
[346776599,1735278232401,153.0,0.00012185,2]
[346776600,1735278232564,855.69,0.00012248,2]
[346776601,1735278232619,153.0,0.00012185,2]
[346776602,1735278233064,855.69,0.00012522,2]
[346776603,1735278234706,855.69,0.00012796,2]
[346776604,1735278238659,1459.91,0.00011974,2]
[346776605,1735278239511,500.0,0.00011973,2]
[346776606,1735278239784,500.0,0.00012247,2]
[346776607,1735278240336,500.0,0.00012521,2]
[346776608,1735278240470,500.0,0.00012795,2]
[346776609,1735278240526,1459.91,0.00012248,2]
[346776610,1735278241023,1459.91,0.00012522,2]
[346776611,1735278241819,1459.91,0.00012796,2]
[346776612,1735278248154,965.08,0.00011973,2]
[346776613,1735278248477,965.08,0.00012247,2]
[346776614,1735278248728,965.08,0.00012521,2]
[346776615,1735278249161,965.08,0.00012795,2]
[346776616,1735278256789,1860.06,0.00011975,2]
[346776617,1735278258391,1860.06,0.00012249,2]
[346776618,1735278258911,1860.06,0.00012523,2]
[346776619,1735278259428,1860.06,0.00012797,2]
[346776620,1735278264792,500.0,0.00011973,2]
[346776621,1735278265074,500.0,0.00012247,2]
[346776622,1735278265386,500.0,0.00012521,2]
[346776623,1735278265645,500.0,0.00012795,2]
[346776624,1735278274682,1740.57,0.00011973,2]
[346776625,1735278274978,1740.57,0.00012247,2]
[346776626,1735278275227,1740.57,0.00012521,2]
[346776627,1735278275471,1740.57,0.00012795,2]
[346776628,1735278281016,4791.06,0.00011973,2]
[346776629,1735278282941,4791.06,0.00012247,2]
[346776630,1735278283251,942.12,0.00011974,2]
[346776631,1735278283339,4791.06,0.00012521,2]
[346776632,1735278283465,942.12,0.00012248,2]
[346776633,1735278283521,4791.06,0.00012795,2]
[346776634,1735278283897,942.12,0.00012522,2]
[346776635,1735278284457,942.12,0.00012796,2]
[346776636,1735278284742,526.63,0.00011973,2]
[346776637,1735278284985,526.63,0.00012247,2]
[346776638,1735278285819,526.63,0.00012521,2]
[346776639,1735278286077,526.63,0.00012795,2]
[346776640,1735278286622,1831.17,0.00011974,2]
[346776641,1735278288565,1831.17,0.00012248,2]
[346776642,1735278289805,1831.17,0.00012522,2]
[346776643,1735278290234,153.0,0.0001218,2]
[346776644,1735278290460,153.0,0.0001218,2]
[346776645,1735278290823,1831.17,0.00012796,2]
[346776646,1735278292728,2669.74,0.00011973,2]
[346776647,1735278293862,2669.74,0.00012247,2]
[346776648,1735278294235,500.0,0.00011973,2]
[346776649,1735278294479,500.0,0.00012247,2]
[346776650,1735278294563,2669.74,0.00012521,2]
[346776651,1735278294762,500.0,0.00012521,2]
[346776652,1735278294922,153.0,0.00012179,2]
[346776653,1735278294993,500.0,0.00012795,2]
[346776654,1735278295522,2669.74,0.00012795,2]
[346776655,1735278298957,582.55,0.00011974,2]
[346776656,1735278299564,582.55,0.00012248,2]
[346776657,1735278300920,582.55,0.00012522,2]
[346776658,1735278301964,582.55,0.00012796,2]
[346776659,1735278303091,1675.04,0.00011975,2]
[346776660,1735278306915,500.0,0.00011973,2]
[346776661,1735278307172,500.0,0.00012247,2]
[346776662,1735278307435,500.0,0.00012521,2]
[346776663,1735278307705,500.0,0.00012795,2]
[346776664,1735278312428,1430.32,0.00011974,2]
[346776665,1735278312896,2012.0,0.00012258,2]
[346776666,1735278313093,1430.32,0.00012248,2]
[346776667,1735278313458,751.9,0.00011973,2]
[346776668,1735278313559,751.9,0.00012247,2]
[346776669,1735278313775,751.9,0.00012521,2]
[346776670,1735278313845,1430.32,0.00012522,2]
[346776671,1735278314027,751.9,0.00012795,2]
[346776672,1735278314692,1430.32,0.00012796,2]
[346776673,1735278317211,7288.26,0.00011974,2]
[346776674,1735278318158,7288.26,0.00012248,2]
[346776675,1735278319285,7288.26,0.00012522,2]
[346776676,1735278319435,1266.0,0.00012258,2]
[346776677,1735278319795,1304.8,0.00011975,2]
[346776678,1735278320118,7288.26,0.00012796,2]
[346776679,1735278320866,1304.8,0.00012249,2]
[346776680,1735278322399,1304.8,0.00012523,2]
[346776681,1735278323002,1304.8,0.00012797,2]
[346776682,1735278324881,635.0,0.00012258,2]
[346776683,1735278325732,1073.85,0.00011973,2]
[346776684,1735278325979,1073.85,0.00012247,2]
[346776685,1735278326227,1073.85,0.00012521,2]
[346776686,1735278326533,1073.85,0.00012795,2]
[346776687,1735278331229,1615.31,0.00011973,2]
[346776688,1735278332056,1615.31,0.00012247,2]
[346776689,1735278332738,1615.31,0.00012521,2]
[346776690,1735278333433,1615.31,0.00012795,2]
[346776691,1735278334097,500.0,0.00011973,2]
[346776692,1735278334717,500.0,0.00012247,2]
[346776693,1735278335424,500.0,0.00012521,2]
[346776694,1735278335513,500.0,0.00012795,2]
[346776695,1735278336079,1500.0,0.00012931,2]
[346776696,1735278336152,1500.0,0.00012921,2]
[346776697,1735278336210,1500.0,0.00012982,2]
[346776698,1735278336272,1052.32156683,0.00012844,2]
[346776699,1735278339298,2233.65,0.00011974,2]
[346776700,1735278339363,500.0,0.00011973,2]
[346776701,1735278339608,500.0,0.00012247,2]
[346776702,1735278339877,500.0,0.00012521,2]
[346776703,1735278340127,500.0,0.00012795,2]
[346776704,1735278340798,2233.65,0.00012248,2]
[346776705,1735278341353,2233.65,0.00012522,2]
[346776706,1735278342209,2233.65,0.00012796,2]
[346776707,1735278342268,150.0,0.00012258,2]
[346776708,1735278342666,153.0,0.00012174,2]
[346776709,1735278343964,500.0,0.00011974,2]
[346776710,1735278345789,500.0,0.00012248,2]
[346776711,1735278346470,593.74,0.00011973,2]
[346776712,1735278346825,633.0,0.00012258,2]
[346776713,1735278346931,593.74,0.00012247,2]
[346776714,1735278347133,153.0,0.00012174,2]
[346776715,1735278347196,500.0,0.00012522,2]
[346776716,1735278347247,593.74,0.00012521,2]
[346776717,1735278347484,593.74,0.00012795,2]
[346776718,1735278347901,500.0,0.00012796,2]
[346776719,1735278353286,565.0,0.00012258,2]
[346776720,1735278357060,3301.18,0.00011975,2]
[346776721,1735278357876,3301.18,0.00012249,2]
[346776722,1735278359177,3301.18,0.00012523,2]
[346776723,1735278359991,3301.18,0.00012797,2]
[346776724,1735278363767,278.20902356,0.00011973,2]
[346776725,1735278364950,1525.97,0.00011974,2]
[346776726,1735278365745,1525.97,0.00012248,2]
[346776727,1735278367001,1525.97,0.00012522,2]
[346776728,1735278367208,1525.97,0.00012796,2]
[346776729,1735278367911,1102.0,0.00012258,2]
[346776730,1735278372591,1900.0,0.00012258,2]
[346776731,1735278373713,1296.85,0.00011973,2]
[346776732,1735278374773,1296.85,0.00012247,2]
[346776733,1735278374887,1550.05,0.00011974,2]
[346776734,1735278375413,1296.85,0.00012521,2]
[346776735,1735278375573,3055.08,0.00011973,2]
[346776736,1735278375643,1550.05,0.00012248,2]
[346776737,1735278375747,1296.85,0.00012795,2]
[346776738,1735278376140,3055.08,0.00012247,2]
[346776739,1735278376366,1550.05,0.00012522,2]
[346776740,1735278376766,1550.05,0.00012796,2]
[346776741,1735278376900,3055.08,0.00012521,2]
[346776742,1735278377536,3055.08,0.00012795,2]
[346776743,1735278380114,2603.94,0.00011974,2]
[346776744,1735278380905,2603.94,0.00012248,2]
[346776745,1735278381543,2603.94,0.00012522,2]
[346776746,1735278382304,2603.94,0.00012796,2]
[346776747,1735278393159,6073.55,0.00011974,2]
[346776748,1735278394187,6073.55,0.00012248,2]
[346776749,1735278395106,6073.55,0.00012522,2]
[346776750,1735278396728,6073.55,0.00012796,2]
[346776751,1735278402807,922.0,0.00012258,2]
[346776753,1735278408621,450.0,0.00013,2]
[346776754,1735278408688,819.0,0.00012258,2]
[346776755,1735278409562,2483.68,0.00011974,2]
[346776756,1735278410147,2483.68,0.00012248,2]
[346776757,1735278410520,573.82,0.00011975,2]
[346776758,1735278411345,2483.68,0.00012522,2]
[346776759,1735278411727,573.82,0.00012249,2]
[346776760,1735278412359,2483.68,0.00012796,2]
[346776761,1735278412432,573.82,0.00012523,2]
[346776762,1735278412715,1605.24,0.00011974,2]
[346776763,1735278412995,573.82,0.00012797,2]
[346776764,1735278413322,1605.24,0.00012248,2]
[346776765,1735278413978,1605.24,0.00012522,2]
[346776766,1735278414090,3772.0,0.00012258,2]
[346776767,1735278414557,1605.24,0.00012796,2]
[346776768,1735278420557,1256.0,0.00012258,2]
[346776769,1735278422924,500.0,0.00011974,2]
[346776770,1735278424468,500.0,0.00012248,2]
[346776771,1735278425153,808.58,0.00011973,2]
[346776772,1735278425339,500.0,0.00012522,2]
[346776773,1735278425768,808.58,0.00012247,2]
[346776774,1735278426298,500.0,0.00012796,2]
[346776775,1735278426785,808.58,0.00012521,2]
[346776776,1735278427499,808.58,0.00012795,2]
[346776777,1735278431207,3992.55,0.00011973,2]
[346776778,1735278431752,3992.55,0.00012247,2]
[346776779,1735278433123,3992.55,0.00012521,2]
[346776780,1735278434597,3992.55,0.00012795,2]
[346776781,1735278435202,536.0,0.00012258,2]
[346776782,1735278437913,1362.91,0.00011975,2]
[346776783,1735278438462,1362.91,0.00012249,2]
[346776784,1735278440485,1362.91,0.00012523,2]
[346776785,1735278440798,13654.62,0.00011974,2]
[346776786,1735278441174,3685.0,0.00012258,2]
[346776787,1735278441218,1362.91,0.00012797,2]
[346776788,1735278441673,13654.62,0.00012248,2]
[346776789,1735278442600,13654.62,0.00012522,2]
[346776790,1735278443731,13654.62,0.00012796,2]
[346776791,1735278447070,1291.71,0.00011974,2]
[346776792,1735278447743,1291.71,0.00012248,2]
[346776793,1735278448791,1291.71,0.00012522,2]
[346776794,1735278448888,1087.33,0.00011974,2]
[346776795,1735278449171,1291.71,0.00012796,2]
[346776796,1735278449219,1087.33,0.00012248,2]
[346776797,1735278450114,1087.33,0.00012522,2]
[346776798,1735278450648,1087.33,0.00012796,2]
[346776799,1735278454376,1400.04,0.00011973,2]
[346776800,1735278454727,1400.04,0.00012247,2]
[346776801,1735278455595,1400.04,0.00012521,2]
[346776802,1735278455997,1500.0,0.00012904,2]
[346776803,1735278456369,1400.04,0.00012795,2]
[346776804,1735278465820,1453.91,0.00011975,2]
[346776805,1735278466437,1453.91,0.00012249,2]
[346776806,1735278467238,1453.91,0.00012523,2]
[346776807,1735278468635,1453.91,0.00012797,2]
[346776808,1735278474837,1346.09,0.00011973,2]
[346776809,1735278475700,1346.09,0.00012247,2]
[346776810,1735278476507,1346.09,0.00012521,2]
[346776811,1735278476912,1346.09,0.00012795,2]
[346776812,1735278483313,2750.98,0.00011974,2]
[346776813,1735278483967,2750.98,0.00012248,2]
[346776814,1735278484224,500.0,0.00011973,2]
[346776815,1735278484634,2750.98,0.00012522,2]
[346776816,1735278484927,500.0,0.00012247,2]
[346776817,1735278485332,2750.98,0.00012796,2]
[346776818,1735278485784,500.0,0.00012521,2]
[346776819,1735278487032,500.0,0.00012795,2]
[346776820,1735278489916,1337.7,0.00011974,2]
[346776821,1735278491170,1337.7,0.00012248,2]
[346776822,1735278491642,1337.7,0.00012522,2]
[346776823,1735278492418,1337.7,0.00012796,2]
[346776824,1735278493012,925.52,0.00011975,2]
[346776825,1735278494150,925.52,0.00012249,2]
[346776830,1735278495068,925.52,0.00012523,2]
[346776868,1735278495952,925.52,0.00012797,2]
[346776959,1735278500542,1397.28,0.00011974,2]
[346776960,1735278502094,1397.28,0.00012248,2]
[346776961,1735278503180,1397.28,0.00012522,2]
[346776962,1735278503503,1397.28,0.00012796,2]
[346776963,1735278516067,1500.0,0.00012809,2]
[346776964,1735278516176,1148.02247862,0.00012833,2]
[346776965,1735278520572,250.0,0.00012052,2]
[346776966,1735278520624,2545.9,0.00011973,2]
[346776967,1735278522069,2545.9,0.00012247,2]
[346776968,1735278522842,2545.9,0.00012521,2]
[346776969,1735278523469,2545.9,0.00012795,2]
[346776970,1735278526953,3158.35,0.00011973,2]
[346776971,1735278527481,3158.35,0.00012247,2]
[346776972,1735278527975,3158.35,0.00012521,2]
[346776973,1735278528440,3158.35,0.00012795,2]
[346776974,1735278531774,906.11,0.00011974,2]
[346776975,1735278532446,713.07,0.00011974,2]
[346776976,1735278533447,906.11,0.00012248,2]
[346776977,1735278534668,713.07,0.00012248,2]
[346776978,1735278534728,906.11,0.00012522,2]
[346776979,1735278534967,713.07,0.00012522,2]
[346776980,1735278535038,906.11,0.00012796,2]
[346776981,1735278535918,713.07,0.00012796,2]
[346776982,1735278539690,500.0,0.00011974,2]
[346776983,1735278540642,500.0,0.00012248,2]
[346776984,1735278540688,2496.65,0.00011975,2]
[346776985,1735278541906,500.0,0.00012522,2]
[346776986,1735278542037,2496.65,0.00012249,2]
[346776987,1735278542470,500.0,0.00012796,2]
[346776988,1735278543148,2496.65,0.00012523,2]
[346776989,1735278543670,2496.65,0.00012797,2]
[346776990,1735278555674,1000.0,0.00012052,2]
[346776996,1735278559156,733.7,0.00011973,2]
[346776997,1735278559702,733.7,0.00012247,2]
[346776998,1735278560573,733.7,0.00012521,2]
[346776999,1735278561538,733.7,0.00012795,2]
[346777000,1735278569192,1135.76,0.00011974,2]
[346777001,1735278569875,2292.48,0.00011974,2]
[346777002,1735278569996,1135.76,0.00012248,2]
[346777003,1735278571073,1135.76,0.00012522,2]
[346777004,1735278571416,2292.48,0.00012248,2]
[346777005,1735278571484,673.81,0.00011973,2]
[346777006,1735278571544,1135.76,0.00012796,2]
[346777007,1735278571663,2292.48,0.00012522,2]
[346777008,1735278571789,673.81,0.00012247,2]
[346777009,1735278572004,2292.48,0.00012796,2]
[346777010,1735278572528,673.81,0.00012521,2]
[346777011,1735278573397,673.81,0.00012795,2]
[346777019,1735278599302,1211.59,0.00011974,2]
[346777020,1735278600161,1211.59,0.00012248,2]
[346777021,1735278600690,1166.7,0.00011973,2]
[346777022,1735278600983,1211.59,0.00012522,2]
[346777023,1735278601240,500.0,0.00011974,2]
[346777024,1735278601488,1166.7,0.00012247,2]
[346777025,1735278601752,1211.59,0.00012796,2]
[346777026,1735278601921,500.0,0.00012248,2]
[346777027,1735278602244,1166.7,0.00012521,2]
[346777028,1735278603366,500.0,0.00012522,2]
[346777029,1735278603708,1166.7,0.00012795,2]
[346777030,1735278604425,500.0,0.00012796,2]
[346777039,1735278611179,2098.6,0.00011975,2]
[346777040,1735278611588,2098.6,0.00012249,2]
[346777041,1735278612198,2098.6,0.00012523,2]
[346777042,1735278612347,3889.0,0.00012258,2]
[346777043,1735278613484,2098.6,0.00012797,2]
[346777044,1735278616487,652.84,0.00010134,2]
[346777045,1735278616686,652.84,0.00012398,2]
[346777046,1735278623111,150.0,0.00012258,2]
[346777047,1735278626076,924.76,0.00011973,2]
[346777048,1735278626148,500.0,0.00011974,2]
[346777049,1735278626849,500.0,0.00012248,2]
[346777050,1735278627122,924.76,0.00012247,2]
[346777051,1735278627643,924.76,0.00012521,2]
[346777052,1735278627793,500.0,0.00012522,2]
[346777053,1735278628066,771.26,0.00011974,2]
[346777054,1735278628356,924.76,0.00012795,2]
[346777055,1735278628476,500.0,0.00012796,2]
[346777056,1735278628800,771.26,0.00012248,2]
[346777057,1735278629927,771.26,0.00012522,2]
[346777058,1735278630905,771.26,0.00012796,2]
[346777061,1735278632177,-150.0,0.00013014,2]
[346777062,1735278632187,-151.98,0.00013014,2]
[346777063,1735278632197,-151.57,0.00013014,2]
[346777064,1735278632207,-150.78,0.00013014,2]
[346777065,1735278632217,-150.33,0.00013014,2]
[346777066,1735278632228,-152.48,0.00013014,2]
[346777067,1735278632238,-152.67,0.00013014,2]
[346777068,1735278632247,-152.14,0.00013014,2]
[346777069,1735278632257,-151.58,0.00013014,2]
[346777070,1735278632266,-151.96,0.00013014,2]
[346777071,1735278632276,-150.19,0.00013014,2]
[346777072,1735278632287,-151.98,0.00013014,2]
[346777073,1735278632296,-126.86989441,0.00013014,2]
[346777074,1735278632308,-26.11010559,0.00013014,2]
[346777075,1735278632318,-152.03,0.00013014,2]
[346777076,1735278632327,-152.97,0.00013015,2]
[346777077,1735278632337,-149.65837743,0.00013015,2]
[346777078,1735278632406,500.0,0.00011973,2]
[346777079,1735278633318,500.0,0.00012247,2]
[346777080,1735278633835,500.0,0.00012521,2]
[346777081,1735278634739,500.0,0.00012795,2]
[346777094,1735278637972,-152.61,0.00013014,2]
[346777096,1735278637983,-2.96162257,0.00013015,2]
[346777097,1735278637992,-1500.0,0.00013017,2]
[346777098,1735278638002,-152.12,0.00013017,2]
[346777099,1735278638011,-151.39,0.00013021,2]
[346777100,1735278638021,-152.31,0.00013028,2]
[346777101,1735278638031,-150.0,0.00013042,2]
[346777102,1735278638041,-152.3,0.00013042,2]
[346777103,1735278638051,-152.61,0.00013042,2]
[346777104,1735278638064,-150.83,0.00013042,2]
[346777105,1735278638074,-152.1,0.00013042,2]
[346777106,1735278638084,-150.58,0.00013042,2]
[346777107,1735278638095,-151.49,0.00013042,2]
[346777108,1735278638105,-151.15,0.00013043,2]
[346777109,1735278638115,-151.72,0.00013043,2]
[346777110,1735278638125,-152.82,0.00013044,2]
[346777111,1735278638135,-151.01,0.00013047,2]
[346777112,1735278638145,-152.52,0.00013052,2]
[346777113,1735278638155,-4566.15638802,0.0001306,2]
[346777114,1735278638165,-151.88,0.00013061,2]
[346777115,1735278638179,-2644.785,0.00013063,2]
[346777116,1735278638189,-920.6918036,0.00013063,2]
[346777117,1735278638200,-151.16,0.00013063,2]
[346777118,1735278638210,-151.13,0.00013063,2]
[346777119,1735278638220,-152.76,0.00013063,2]
[346777120,1735278638231,-152.07,0.00013063,2]
[346777121,1735278638240,-150.2,0.00013063,2]
[346777122,1735278638250,-152.42,0.00013063,2]
[346777123,1735278638261,-150.07,0.00013063,2]
[346777124,1735278638271,-151.13,0.00013063,2]
[346777125,1735278638281,-152.63,0.00013063,2]
[346777126,1735278638291,-150.22,0.00013063,2]
[346777127,1735278638300,-152.2,0.00013063,2]
[346777128,1735278638311,-152.72,0.00013063,2]
[346777129,1735278638320,-150.87,0.00013063,2]
[346777130,1735278638330,-151.29,0.00013063,2]
[346777131,1735278638339,-152.38,0.00013063,2]
[346777132,1735278638349,-152.32,0.00013063,2]
[346777133,1735278638359,-152.12,0.00013063,2]
[346777134,1735278638369,-152.81,0.00013063,2]
[346777135,1735278638378,-152.59,0.00013063,2]
[346777136,1735278638388,-152.53,0.00013063,2]
[346777137,1735278638397,-152.66,0.00013063,2]
[346777138,1735278638407,-152.7,0.00013063,2]
[346777139,1735278638417,-150.78,0.00013063,2]
[346777140,1735278638431,-150.6,0.00013063,2]
[346777141,1735278638441,-151.04,0.00013063,2]
[346777142,1735278638451,-152.17,0.00013063,2]
[346777143,1735278638461,-150.63,0.00013063,2]
[346777144,1735278638471,-152.71,0.00013063,2]
[346777145,1735278638481,-500.0,0.00013067,2]
[346777147,1735278638491,-500.0,0.00013067,2]
[346777149,1735278638501,-575.79,0.00013067,2]
[346777151,1735278638511,-1049.81,0.00013067,2]
[346777153,1735278638521,-500.0,0.00013067,2]
[346777156,1735278638531,-500.0,0.00013067,2]
[346777159,1735278638540,-924.9,0.00013067,2]
[346777161,1735278638549,-423.25156385,0.00013067,2]
[346777164,1735278638572,-1172.11843615,0.00013067,2]
[346777166,1735278638582,-1404.6,0.00013067,2]
[346777168,1735278638591,-1212.5,0.00013067,2]
[346777170,1735278638600,-1068.53,0.00013067,2]
[346777172,1735278638610,-788.42,0.00013067,2]
[346777174,1735278638620,-703.08,0.00013067,2]
[346777176,1735278638629,-500.0,0.00013067,2]
[346777178,1735278638639,-513.53,0.00013067,2]
[346777180,1735278638648,-694.69,0.00013067,2]
[346777182,1735278638657,-500.0,0.00013067,2]
[346777184,1735278638667,-500.0,0.00013067,2]
[346777186,1735278638679,-1165.2,0.00013067,2]
[346777188,1735278638689,-798.69,0.00013067,2]